[Event "Titled Tuesday Blitz April 11 Late 2023"]
[White "Averjanov, Alexey"]
[Black "Kornyukov, Alexey"]
[WhiteFideId "14109867"]
[BlackFideId "4150457"]
[WhiteElo "2399"]
[BlackElo "2352"]
[Result "1-0"]
[Round "09"]
[TimeControl "180+2"]
[Date "2023.04.11"]
[WhiteClock "0:01:13"]
[BlackClock "0:00:02"]

1. d4 {[%clk 0:03:00]}  d5 {[%clk 0:02:57]} 2. c4 {[%clk 0:03:01]}  e6 {[%clk 0:02:56]} 3. Nf3 {[%clk 0:03:00]}  c6 {[%clk 0:02:55]} 4. e3 {[%clk 0:03:00]}  Nf6 {[%clk 0:02:55]} 5. Nbd2 {[%clk 0:03:00]}  c5 {[%clk 0:02:38]} 6. dxc5 {[%clk 0:02:57]}  Nbd7 {[%clk 0:02:32]} 7. Be2 {[%clk 0:02:54]}  Nxc5 {[%clk 0:02:16]} 8. O-O {[%clk 0:02:54]}  Be7 {[%clk 0:02:15]} 9. b3 {[%clk 0:02:51]}  O-O {[%clk 0:02:13]} 10. Bb2 {[%clk 0:02:51]}  b6 {[%clk 0:02:13]} 11. Rc1 {[%clk 0:02:50]}  Bb7 {[%clk 0:02:12]} 12. Qc2 {[%clk 0:02:51]}  Rc8 {[%clk 0:02:09]} 13. Rfd1 {[%clk 0:02:51]}  Nce4 {[%clk 0:01:46]} 14. Nxe4 {[%clk 0:02:47]}  Nxe4 {[%clk 0:01:45]} 15. Qb1 {[%clk 0:02:47]}  Bf6 {[%clk 0:01:29]} 16. cxd5 {[%clk 0:02:41]}  Bxd5 {[%clk 0:01:23]} 17. Rxc8 {[%clk 0:02:40]}  Qxc8 {[%clk 0:01:20]} 18. Bxf6 {[%clk 0:02:40]}  Nxf6 {[%clk 0:01:19]} 19. Rc1 {[%clk 0:02:40]}  Qb7 {[%clk 0:01:17]} 20. Qc2 {[%clk 0:02:37]}  h6 {[%clk 0:00:55]} 21. h3 {[%clk 0:02:36]}  Rd8 {[%clk 0:00:39]} 22. Qc7 {[%clk 0:02:32]}  Qxc7 {[%clk 0:00:39]} 23. Rxc7 {[%clk 0:02:33]}  Rd7 {[%clk 0:00:39]} 24. Rc8+ {[%clk 0:02:31]}  Kh7 {[%clk 0:00:39]} 25. Ne5 {[%clk 0:02:31]}  Re7 {[%clk 0:00:36]} 26. f3 {[%clk 0:02:29]}  g5 {[%clk 0:00:25]} 27. Bd3+ {[%clk 0:02:27]}  Kg7 {[%clk 0:00:25]} 28. Kf2 {[%clk 0:02:27]}  Nd7 {[%clk 0:00:20]} 29. Nc4 {[%clk 0:02:13]}  Nc5 {[%clk 0:00:19]} 30. Be2 {[%clk 0:02:11]}  Bxc4 {[%clk 0:00:19]} 31. Bxc4 {[%clk 0:02:11]}  Rd7 {[%clk 0:00:19]} 32. Ke2 {[%clk 0:02:11]}  Kf6 {[%clk 0:00:14]} 33. Rh8 {[%clk 0:02:09]}  Kg7 {[%clk 0:00:14]} 34. Ra8 {[%clk 0:02:09]}  e5 {[%clk 0:00:10]} 35. e4 {[%clk 0:02:07]}  Kf6 {[%clk 0:00:10]} 36. Rh8 {[%clk 0:02:05]}  Kg7 {[%clk 0:00:10]} 37. Ra8 {[%clk 0:02:06]}  Kf6 {[%clk 0:00:10]} 38. Bd5 {[%clk 0:02:07]}  Ne6 {[%clk 0:00:10]} 39. Bxe6 {[%clk 0:02:01]}  Kxe6 {[%clk 0:00:10]} 40. Rh8 {[%clk 0:02:01]}  Rc7 {[%clk 0:00:10]} 41. Kd2 {[%clk 0:02:01]}  Rd7+ {[%clk 0:00:10]} 42. Ke3 {[%clk 0:01:59]}  Rc7 {[%clk 0:00:10]} 43. Rxh6+ {[%clk 0:01:59]}  f6 {[%clk 0:00:10]} 44. Kd3 {[%clk 0:01:58]}  Rd7+ {[%clk 0:00:11]} 45. Kc3 {[%clk 0:01:55]}  Rc7+ {[%clk 0:00:11]} 46. Kb2 {[%clk 0:01:55]}  Rd7 {[%clk 0:00:11]} 47. Kc1 {[%clk 0:01:46]}  Rc7+ {[%clk 0:00:10]} 48. Kb1 {[%clk 0:01:47]}  Rd7 {[%clk 0:00:11]} 49. h4 {[%clk 0:01:46]}  gxh4 {[%clk 0:00:09]} 50. Rxh4 {[%clk 0:01:47]}  Rd2 {[%clk 0:00:09]} 51. Rg4 {[%clk 0:01:44]}  Rf2 {[%clk 0:00:08]} 52. Rg7 {[%clk 0:01:44]}  a5 {[%clk 0:00:06]} 53. Rb7 {[%clk 0:01:44]}  Rxg2 {[%clk 0:00:05]} 54. Rxb6+ {[%clk 0:01:44]}  Ke7 {[%clk 0:00:05]} 55. Rb7+ {[%clk 0:01:42]}  Kd6 {[%clk 0:00:04]} 56. Rb6+ {[%clk 0:01:42]}  Kc5 {[%clk 0:00:04]} 57. Rxf6 {[%clk 0:01:42]}  Kd4 {[%clk 0:00:03]} 58. Rc6 {[%clk 0:01:34]}  Rf2 {[%clk 0:00:01]} 59. Rc4+ {[%clk 0:01:30]}  Kd3 {[%clk 0:00:01]} 60. Rc5 {[%clk 0:01:29]}  Rxf3 {[%clk 0:00:01]} 61. Rxe5 {[%clk 0:01:29]}  Rf2 {[%clk 0:00:02]} 62. Rxa5 {[%clk 0:01:27]}  Kxe4 {[%clk 0:00:01]} 63. Rc5 {[%clk 0:01:26]}  Kd4 {[%clk 0:00:01]} 64. Rc4+ {[%clk 0:01:27]}  Kd3 {[%clk 0:00:02]} 65. a4 {[%clk 0:01:24]}  Rg2 {[%clk 0:00:02]} 66. a5 {[%clk 0:01:25]}  Rg5 {[%clk 0:00:02]} 67. Ra4 {[%clk 0:01:24]}  Kc3 {[%clk 0:00:02]} 68. Ka2 {[%clk 0:01:18]}  Rg2+ {[%clk 0:00:02]} 69. Ka3 {[%clk 0:01:17]}  Rg1 {[%clk 0:00:02]} 70. Rc4+ {[%clk 0:01:17]}  Kd3 {[%clk 0:00:03]} 71. Kb4 {[%clk 0:01:16]}  Ra1 {[%clk 0:00:03]} 72. Kb5 {[%clk 0:01:15]}  Ra3 {[%clk 0:00:02]} 73. b4 {[%clk 0:01:15]}  Ra1 {[%clk 0:00:01]} 74. Rc7 {[%clk 0:01:15]}  Rg1 {[%clk 0:00:02]} 75. a6 {[%clk 0:01:14]}  Rg5+ {[%clk 0:00:02]} 76. Kb6 {[%clk 0:01:14]}  Rg6+ {[%clk 0:00:02]} 77. Rc6 {[%clk 0:01:14]}  Rg8 {[%clk 0:00:02]} 78. b5 {[%clk 0:01:13]}  Kd4 {[%clk 0:00:02]} 79. a7 {[%clk 0:01:13]}  Kd5 {[%clk 0:00:03]} 80. Kb7 {[%clk 0:01:13]}  Rg7+ {[%clk 0:00:02]} 81. Rc7 {[%clk 0:01:14]}  Rg8 {[%clk 0:00:02]} 82. a8=Q {[%clk 0:01:13]} 1-0


[Site "https://www.chess.com"]

[Event "Titled Tuesday Blitz April 11 Late 2023"]
[White "Barp, Alberto"]
[Black "Sai Han Thiha"]
[WhiteFideId "872555"]
[BlackFideId "13012290"]
[WhiteElo "2313"]
[BlackElo "1954"]
[Result "1-0"]
[Round "09"]
[TimeControl "180+2"]
[Date "2023.04.11"]
[WhiteClock "0:00:44"]
[BlackClock "0:00:20"]

1. e4 {[%clk 0:03:00]}  c6 {[%clk 0:02:59]} 2. d4 {[%clk 0:02:56]}  d5 {[%clk 0:03:00]} 3. e5 {[%clk 0:02:56]}  c5 {[%clk 0:03:00]} 4. Nf3 {[%clk 0:02:55]}  cxd4 {[%clk 0:03:00]} 5. Nxd4 {[%clk 0:02:54]}  Nc6 {[%clk 0:03:01]} 6. Bb5 {[%clk 0:02:36]}  Bd7 {[%clk 0:03:00]} 7. e6 {[%clk 0:02:23]}  fxe6 {[%clk 0:03:01]} 8. Bxc6 {[%clk 0:02:23]}  bxc6 {[%clk 0:02:57]} 9. Qe2 {[%clk 0:02:21]}  Nf6 {[%clk 0:02:31]} 10. O-O {[%clk 0:02:18]}  g6 {[%clk 0:02:25]} 11. Re1 {[%clk 0:02:14]}  Bg7 {[%clk 0:02:25]} 12. Bg5 {[%clk 0:02:01]}  Ne4 {[%clk 0:02:13]} 13. Be3 {[%clk 0:02:00]}  c5 {[%clk 0:01:47]} 14. Nf3 {[%clk 0:02:00]}  Bxb2 {[%clk 0:01:34]} 15. Nbd2 {[%clk 0:01:58]}  Bxa1 {[%clk 0:01:17]} 16. Rxa1 {[%clk 0:01:52]}  Nxd2 {[%clk 0:01:05]} 17. Bxd2 {[%clk 0:01:50]}  O-O {[%clk 0:01:03]} 18. Bh6 {[%clk 0:01:47]}  Rf5 {[%clk 0:01:01]} 19. g4 {[%clk 0:01:45]}  Rf6 {[%clk 0:00:51]} 20. Ne5 {[%clk 0:01:42]}  Qc7 {[%clk 0:00:46]} 21. f4 {[%clk 0:01:36]}  Rb8 {[%clk 0:00:40]} 22. h4 {[%clk 0:01:31]}  d4 {[%clk 0:00:37]} 23. Rf1 {[%clk 0:01:19]}  Bc6 {[%clk 0:00:36]} 24. Kh2 {[%clk 0:01:05]}  Ba8 {[%clk 0:00:36]} 25. h5 {[%clk 0:00:59]}  Qb7 {[%clk 0:00:30]} 26. hxg6 {[%clk 0:00:58]}  Rxg6 {[%clk 0:00:23]} 27. Nxg6 {[%clk 0:00:55]}  hxg6 {[%clk 0:00:21]} 28. Qxe6+ {[%clk 0:00:41]}  Kh7 {[%clk 0:00:21]} 29. Qf7+ {[%clk 0:00:42]}  Kxh6 {[%clk 0:00:19]} 30. g5+ {[%clk 0:00:42]}  Kh5 {[%clk 0:00:19]} 31. Qh7+ {[%clk 0:00:43]}  Kg4 {[%clk 0:00:20]} 32. Qh3# {[%clk 0:00:44]} 1-0


[Site "https://www.chess.com"]

[Event "Titled Tuesday Blitz April 11 Late 2023"]
[White "Reprintsev, Alexander"]
[Black "De La Colina, Nicolas"]
[WhiteFideId "14100541"]
[BlackFideId "30946921"]
[WhiteElo "2211"]
[BlackElo "2046"]
[Result "0-1"]
[Round "09"]
[TimeControl "180+2"]
[Date "2023.04.11"]
[WhiteClock "0:00:17"]
[BlackClock "0:00:05"]

1. e4 {[%clk 0:03:00]}  c5 {[%clk 0:02:58]} 2. b3 {[%clk 0:03:00]}  g6 {[%clk 0:02:57]} 3. Bb2 {[%clk 0:03:00]}  Nf6 {[%clk 0:02:58]} 4. e5 {[%clk 0:03:00]}  Nd5 {[%clk 0:02:58]} 5. Nc3 {[%clk 0:02:57]}  Nc7 {[%clk 0:02:55]} 6. d4 {[%clk 0:02:56]}  cxd4 {[%clk 0:02:55]} 7. Qxd4 {[%clk 0:02:56]}  Nc6 {[%clk 0:02:52]} 8. Qe3 {[%clk 0:02:56]}  Bg7 {[%clk 0:02:53]} 9. Nf3 {[%clk 0:02:54]}  O-O {[%clk 0:02:45]} 10. O-O-O {[%clk 0:02:53]}  d6 {[%clk 0:02:34]} 11. exd6 {[%clk 0:02:51]}  exd6 {[%clk 0:02:34]} 12. Bc4 {[%clk 0:02:45]}  Bg4 {[%clk 0:02:13]} 13. Rhe1 {[%clk 0:02:20]}  Re8 {[%clk 0:01:57]} 14. Qf4 {[%clk 0:02:17]}  Be6 {[%clk 0:01:34]} 15. Bxe6 {[%clk 0:02:11]}  Nxe6 {[%clk 0:01:30]} 16. Qxd6 {[%clk 0:02:10]}  Qa5 {[%clk 0:01:30]} 17. Rd5 {[%clk 0:01:54]}  Qb6 {[%clk 0:01:16]} 18. Qg3 {[%clk 0:01:53]}  Nb4 {[%clk 0:01:06]} 19. Rb5 {[%clk 0:01:46]}  Nxa2+ {[%clk 0:01:05]} 20. Nxa2 {[%clk 0:01:39]}  Qxb5 {[%clk 0:01:04]} 21. Bxg7 {[%clk 0:01:37]}  Kxg7 {[%clk 0:01:04]} 22. Nc3 {[%clk 0:01:37]}  Qa5 {[%clk 0:01:02]} 23. Kb2 {[%clk 0:01:30]}  Rac8 {[%clk 0:01:00]} 24. Ne5 {[%clk 0:01:28]}  Nd4 {[%clk 0:00:44]} 25. Nc4 {[%clk 0:01:26]}  Qf5 {[%clk 0:00:31]} 26. Rc1 {[%clk 0:01:18]}  Ne2 {[%clk 0:00:19]} 27. Nxe2 {[%clk 0:01:01]}  Rxe2 {[%clk 0:00:20]} 28. Qc3+ {[%clk 0:00:56]}  Qf6 {[%clk 0:00:19]} 29. Qxf6+ {[%clk 0:00:52]}  Kxf6 {[%clk 0:00:20]} 30. Rf1 {[%clk 0:00:52]}  Rd8 {[%clk 0:00:16]} 31. h4 {[%clk 0:00:41]}  h5 {[%clk 0:00:16]} 32. g3 {[%clk 0:00:40]}  b5 {[%clk 0:00:14]} 33. Na3 {[%clk 0:00:37]}  Rdd2 {[%clk 0:00:12]} 34. Rc1 {[%clk 0:00:37]}  a6 {[%clk 0:00:11]} 35. f4 {[%clk 0:00:32]}  Rg2 {[%clk 0:00:12]} 36. Kc3 {[%clk 0:00:33]}  Rdf2 {[%clk 0:00:11]} 37. Kb4 {[%clk 0:00:32]}  Rxg3 {[%clk 0:00:11]} 38. Ka5 {[%clk 0:00:32]}  Rxf4 {[%clk 0:00:11]} 39. Kxa6 {[%clk 0:00:33]}  b4 {[%clk 0:00:11]} 40. Nc4 {[%clk 0:00:32]}  Rxh4 {[%clk 0:00:12]} 41. Kb5 {[%clk 0:00:31]}  Kg7 {[%clk 0:00:07]} 42. Kxb4 {[%clk 0:00:31]}  Rf4 {[%clk 0:00:08]} 43. Kc5 {[%clk 0:00:29]}  h4 {[%clk 0:00:08]} 44. Nd6 {[%clk 0:00:22]}  h3 {[%clk 0:00:07]} 45. b4 {[%clk 0:00:22]}  Rg5+ {[%clk 0:00:07]} 46. Kc6 {[%clk 0:00:21]}  Rxb4 {[%clk 0:00:06]} 47. c4 {[%clk 0:00:20]}  h2 {[%clk 0:00:05]} 48. Rh1 {[%clk 0:00:18]}  Rb2 {[%clk 0:00:04]} 49. Ne4 {[%clk 0:00:17]}  Rg1 {[%clk 0:00:05]} 0-1


[Site "https://www.chess.com"]

[Event "Titled Tuesday Blitz April 11 Late 2023"]
[White "Shapiro, Viktor"]
[Black "Ezat, Mohamed"]
[WhiteFideId "4175700"]
[BlackFideId "10600906"]
[WhiteElo "2152"]
[BlackElo "2386"]
[Result "1-0"]
[Round "09"]
[TimeControl "180+2"]
[Date "2023.04.11"]
[WhiteClock "0:00:11"]
[BlackClock "0:00:28"]

1. Nf3 {[%clk 0:03:00]}  Nf6 {[%clk 0:02:59]} 2. g3 {[%clk 0:03:01]}  g6 {[%clk 0:02:59]} 3. Bg2 {[%clk 0:03:01]}  Bg7 {[%clk 0:03:00]} 4. O-O {[%clk 0:03:02]}  O-O {[%clk 0:03:01]} 5. d3 {[%clk 0:03:02]}  d5 {[%clk 0:03:01]} 6. c4 {[%clk 0:03:03]}  Nc6 {[%clk 0:02:58]} 7. Nc3 {[%clk 0:03:03]}  e5 {[%clk 0:02:57]} 8. cxd5 {[%clk 0:03:03]}  Nxd5 {[%clk 0:02:57]} 9. Bd2 {[%clk 0:03:03]}  Re8 {[%clk 0:02:55]} 10. Rc1 {[%clk 0:03:02]}  Bg4 {[%clk 0:02:53]} 11. h3 {[%clk 0:02:55]}  Bxf3 {[%clk 0:02:43]} 12. Bxf3 {[%clk 0:02:55]}  Nxc3 {[%clk 0:02:42]} 13. bxc3 {[%clk 0:02:53]}  Qd7 {[%clk 0:02:41]} 14. Rb1 {[%clk 0:02:51]}  Rad8 {[%clk 0:02:35]} 15. Rxb7 {[%clk 0:02:47]}  e4 {[%clk 0:02:35]} 16. Bxe4 {[%clk 0:02:23]}  Rxe4 {[%clk 0:02:34]} 17. dxe4 {[%clk 0:02:24]}  Qxh3 {[%clk 0:02:21]} 18. Rxc7 {[%clk 0:02:03]}  Ne5 {[%clk 0:02:21]} 19. Qb3 {[%clk 0:01:31]}  Rxd2 {[%clk 0:02:12]} 20. Qb8+ {[%clk 0:01:30]}  Bf8 {[%clk 0:02:11]} 21. Rc8 {[%clk 0:01:23]}  Ng4 {[%clk 0:01:35]} 22. Rxf8+ {[%clk 0:01:23]}  Kg7 {[%clk 0:01:36]} 23. Rg8+ {[%clk 0:01:11]}  Kf6 {[%clk 0:01:35]} 24. Qf4+ {[%clk 0:00:54]}  Ke7 {[%clk 0:01:35]} 25. Qg5+ {[%clk 0:00:53]}  f6 {[%clk 0:01:31]} 26. Qh4 {[%clk 0:00:49]}  Qxh4 {[%clk 0:01:29]} 27. gxh4 {[%clk 0:00:49]}  Rxe2 {[%clk 0:01:29]} 28. Rg7+ {[%clk 0:00:46]}  Ke6 {[%clk 0:01:29]} 29. Rxa7 {[%clk 0:00:44]}  h5 {[%clk 0:01:28]} 30. a4 {[%clk 0:00:43]}  Ra2 {[%clk 0:01:25]} 31. a5 {[%clk 0:00:41]}  Ke5 {[%clk 0:01:25]} 32. a6 {[%clk 0:00:30]}  Kf4 {[%clk 0:01:23]} 33. c4 {[%clk 0:00:22]}  Ne5 {[%clk 0:01:21]} 34. c5 {[%clk 0:00:18]}  Ra3 {[%clk 0:01:20]} 35. Kg2 {[%clk 0:00:17]}  Nf3 {[%clk 0:01:14]} 36. Rd1 {[%clk 0:00:14]}  Nxh4+ {[%clk 0:01:14]} 37. Kf1 {[%clk 0:00:15]}  Nf3 {[%clk 0:01:00]} 38. c6 {[%clk 0:00:15]}  Rc3 {[%clk 0:00:59]} 39. c7 {[%clk 0:00:13]}  h4 {[%clk 0:00:58]} 40. Kg2 {[%clk 0:00:12]}  g5 {[%clk 0:00:50]} 41. Rb7 {[%clk 0:00:12]}  h3+ {[%clk 0:00:38]} 42. Kxh3 {[%clk 0:00:11]}  Nh4+ {[%clk 0:00:36]} 43. Kh2 {[%clk 0:00:11]}  g4 {[%clk 0:00:36]} 44. a7 {[%clk 0:00:11]}  Rh3+ {[%clk 0:00:36]} 45. Kg1 {[%clk 0:00:11]}  Nf3+ {[%clk 0:00:36]} 46. Kg2 {[%clk 0:00:11]}  Rh2+ {[%clk 0:00:36]} 47. Kf1 {[%clk 0:00:12]}  Rh1+ {[%clk 0:00:37]} 48. Ke2 {[%clk 0:00:12]}  Rh8 {[%clk 0:00:33]} 49. Rb8 {[%clk 0:00:11]}  Rh2 {[%clk 0:00:27]} 50. c8=Q {[%clk 0:00:11]}  g3 {[%clk 0:00:28]} 51. Qf5# {[%clk 0:00:11]} 1-0


[Site "https://www.chess.com"]

[Event "Titled Tuesday Blitz April 11 Late 2023"]
[White "Sztokbant, Bernardo Vainzoff"]
[Black "Kavutskiy, Konstantin"]
[WhiteFideId "2115956"]
[BlackFideId "2026384"]
[WhiteElo "2222"]
[BlackElo "2323"]
[Result "0-1"]
[Round "09"]
[TimeControl "180+2"]
[Date "2023.04.11"]
[WhiteClock "0:00:31"]
[BlackClock "0:00:42"]

1. e4 {[%clk 0:03:00]}  c5 {[%clk 0:02:59]} 2. Nf3 {[%clk 0:03:01]}  Nc6 {[%clk 0:02:59]} 3. d4 {[%clk 0:03:01]}  cxd4 {[%clk 0:02:58]} 4. Nxd4 {[%clk 0:03:02]}  Nf6 {[%clk 0:02:58]} 5. Nc3 {[%clk 0:03:02]}  e5 {[%clk 0:02:58]} 6. Ndb5 {[%clk 0:03:03]}  d6 {[%clk 0:02:59]} 7. Bg5 {[%clk 0:03:03]}  a6 {[%clk 0:02:59]} 8. Na3 {[%clk 0:03:03]}  b5 {[%clk 0:02:59]} 9. Nd5 {[%clk 0:03:04]}  Be7 {[%clk 0:02:59]} 10. Bxf6 {[%clk 0:03:05]}  Bxf6 {[%clk 0:03:00]} 11. c4 {[%clk 0:03:05]}  b4 {[%clk 0:03:00]} 12. Nc2 {[%clk 0:03:06]}  O-O {[%clk 0:02:58]} 13. g3 {[%clk 0:03:06]}  a5 {[%clk 0:02:58]} 14. Bg2 {[%clk 0:03:01]}  Be6 {[%clk 0:02:52]} 15. O-O {[%clk 0:03:00]}  Bg5 {[%clk 0:02:51]} 16. b3 {[%clk 0:02:59]}  Qb8 {[%clk 0:02:48]} 17. Qe2 {[%clk 0:02:55]}  Bxd5 {[%clk 0:02:46]} 18. exd5 {[%clk 0:02:52]}  Nd8 {[%clk 0:02:37]} 19. Ne3 {[%clk 0:02:48]}  Bxe3 {[%clk 0:02:31]} 20. Qxe3 {[%clk 0:02:48]}  Nb7 {[%clk 0:02:32]} 21. f4 {[%clk 0:02:46]}  Re8 {[%clk 0:02:18]} 22. Rae1 {[%clk 0:02:31]}  Nc5 {[%clk 0:02:09]} 23. f5 {[%clk 0:02:18]}  f6 {[%clk 0:02:00]} 24. g4 {[%clk 0:02:19]}  Kh8 {[%clk 0:01:50]} 25. g5 {[%clk 0:02:18]}  Qd8 {[%clk 0:01:44]} 26. h4 {[%clk 0:01:57]}  a4 {[%clk 0:01:41]} 27. bxa4 {[%clk 0:01:35]}  Rxa4 {[%clk 0:01:42]} 28. Re2 {[%clk 0:01:35]}  Ra3 {[%clk 0:01:40]} 29. Qd2 {[%clk 0:01:33]}  Qb6 {[%clk 0:01:32]} 30. Kh1 {[%clk 0:01:31]}  Rd3 {[%clk 0:01:24]} 31. Qb2 {[%clk 0:01:14]}  Ra8 {[%clk 0:01:12]} 32. Rb1 {[%clk 0:01:06]}  b3 {[%clk 0:01:08]} 33. a3 {[%clk 0:01:02]}  Na4 {[%clk 0:01:02]} 34. Qc1 {[%clk 0:01:01]}  Qd4 {[%clk 0:01:01]} 35. Qe1 {[%clk 0:00:58]}  Nc3 {[%clk 0:00:58]} 36. Re4 {[%clk 0:00:33]}  Nxe4 {[%clk 0:00:56]} 37. Qxe4 {[%clk 0:00:31]}  Rh3+ {[%clk 0:00:42]} 0-1


[Site "https://www.chess.com"]

[Event "Titled Tuesday Blitz April 11 Late 2023"]
[White "Guzman Moneo, Alberto"]
[Black "Vlassov, Nikolai"]
[WhiteFideId "2209616"]
[BlackFideId "4103360"]
[WhiteElo "2157"]
[BlackElo "2324"]
[Result "0-1"]
[Round "09"]
[TimeControl "180+2"]
[Date "2023.04.11"]
[WhiteClock "0:00:05"]
[BlackClock "0:01:05"]

1. e4 {[%clk 0:03:00]}  Nc6 {[%clk 0:02:59]} 2. d4 {[%clk 0:03:00]}  d5 {[%clk 0:02:59]} 3. e5 {[%clk 0:02:59]}  h5 {[%clk 0:02:58]} 4. Bb5 {[%clk 0:02:55]}  Bg4 {[%clk 0:02:57]} 5. Ne2 {[%clk 0:02:51]}  e6 {[%clk 0:02:54]} 6. c3 {[%clk 0:02:38]}  Qd7 {[%clk 0:02:53]} 7. Qa4 {[%clk 0:02:36]}  Nge7 {[%clk 0:02:50]} 8. Bg5 {[%clk 0:02:34]}  a6 {[%clk 0:02:47]} 9. Bxe7 {[%clk 0:02:34]}  Bxe7 {[%clk 0:02:46]} 10. Nd2 {[%clk 0:02:14]}  O-O {[%clk 0:02:41]} 11. Bxc6 {[%clk 0:02:12]}  Qxc6 {[%clk 0:02:37]} 12. Qxc6 {[%clk 0:02:11]}  bxc6 {[%clk 0:02:37]} 13. Nb3 {[%clk 0:01:56]}  Rfb8 {[%clk 0:02:27]} 14. Nec1 {[%clk 0:01:37]}  a5 {[%clk 0:02:24]} 15. Nd3 {[%clk 0:01:36]}  a4 {[%clk 0:02:21]} 16. Nbc1 {[%clk 0:01:32]}  f6 {[%clk 0:02:12]} 17. exf6 {[%clk 0:01:15]}  gxf6 {[%clk 0:02:10]} 18. a3 {[%clk 0:01:05]}  Bd6 {[%clk 0:02:05]} 19. Nb4 {[%clk 0:00:45]}  c5 {[%clk 0:02:01]} 20. dxc5 {[%clk 0:00:42]}  Bxc5 {[%clk 0:02:01]} 21. Ncd3 {[%clk 0:00:33]}  Bd6 {[%clk 0:02:01]} 22. Nc6 {[%clk 0:00:26]}  Rb6 {[%clk 0:02:00]} 23. Ndb4 {[%clk 0:00:23]}  e5 {[%clk 0:01:28]} 24. Nxd5 {[%clk 0:00:19]}  Rxc6 {[%clk 0:01:26]} 25. Nxf6+ {[%clk 0:00:20]}  Kf7 {[%clk 0:01:25]} 26. Ne4 {[%clk 0:00:18]}  Rb8 {[%clk 0:01:20]} 27. h3 {[%clk 0:00:11]}  Bf5 {[%clk 0:01:17]} 28. Ng3 {[%clk 0:00:11]}  Bg6 {[%clk 0:01:16]} 29. O-O {[%clk 0:00:11]}  Rxb2 {[%clk 0:01:15]} 30. Rfe1 {[%clk 0:00:07]}  Rxc3 {[%clk 0:01:13]} 31. Ne4 {[%clk 0:00:06]}  Bxe4 {[%clk 0:01:09]} 32. Rxe4 {[%clk 0:00:07]}  Rxa3 {[%clk 0:01:06]} 33. Rxa3 {[%clk 0:00:07]}  Bxa3 {[%clk 0:01:06]} 34. Rxa4 {[%clk 0:00:07]}  Bc5 {[%clk 0:01:06]} 35. Re4 {[%clk 0:00:07]}  Bxf2+ {[%clk 0:01:05]} 36. Kh2 {[%clk 0:00:07]}  Bd4 {[%clk 0:01:05]} 37. Kg3 {[%clk 0:00:05]}  c5 {[%clk 0:01:05]} 38. Kf3 {[%clk 0:00:05]}  c4 {[%clk 0:01:05]} 0-1


[Site "https://www.chess.com"]

[Event "Titled Tuesday Blitz April 11 Late 2023"]
[White "Alahakoon, Isuru"]
[Black "Janaszak, Dawid"]
[WhiteFideId "9900993"]
[BlackFideId "1119206"]
[WhiteElo "1995"]
[BlackElo "2220"]
[Result "0-1"]
[Round "09"]
[TimeControl "180+2"]
[Date "2023.04.11"]
[WhiteClock "0:00:01"]
[BlackClock "0:00:28"]

1. Nf3 {[%clk 0:03:00]}  d5 {[%clk 0:02:53]} 2. e3 {[%clk 0:03:00]}  c5 {[%clk 0:02:51]} 3. b3 {[%clk 0:02:59]}  Nc6 {[%clk 0:02:42]} 4. Bb2 {[%clk 0:02:55]}  Bg4 {[%clk 0:02:41]} 5. Bb5 {[%clk 0:02:53]}  Qc7 {[%clk 0:02:37]} 6. h3 {[%clk 0:02:46]}  Bh5 {[%clk 0:02:37]} 7. g4 {[%clk 0:02:41]}  Bg6 {[%clk 0:02:37]} 8. Ne5 {[%clk 0:02:42]}  e6 {[%clk 0:02:31]} 9. h4 {[%clk 0:02:41]}  f6 {[%clk 0:02:24]} 10. Nxg6 {[%clk 0:02:37]}  hxg6 {[%clk 0:02:24]} 11. c4 {[%clk 0:02:32]}  O-O-O {[%clk 0:02:23]} 12. cxd5 {[%clk 0:02:29]}  exd5 {[%clk 0:02:14]} 13. d4 {[%clk 0:02:19]}  cxd4 {[%clk 0:02:14]} 14. Bxc6 {[%clk 0:02:08]}  Bb4+ {[%clk 0:01:59]} 15. Kf1 {[%clk 0:01:58]}  Qxc6 {[%clk 0:01:55]} 16. Nd2 {[%clk 0:01:49]}  Qa6+ {[%clk 0:01:45]} 17. Kg2 {[%clk 0:01:39]}  dxe3 {[%clk 0:01:46]} 18. fxe3 {[%clk 0:01:39]}  Qd3 {[%clk 0:01:41]} 19. Nf3 {[%clk 0:01:16]}  Qxd1 {[%clk 0:01:39]} 20. Rhxd1 {[%clk 0:01:14]}  Nh6 {[%clk 0:01:39]} 21. Kh3 {[%clk 0:00:54]}  Rhe8 {[%clk 0:01:39]} 22. Rd3 {[%clk 0:00:52]}  Re4 {[%clk 0:01:36]} 23. g5 {[%clk 0:00:48]}  Nf5 {[%clk 0:01:34]} 24. gxf6 {[%clk 0:00:42]}  gxf6 {[%clk 0:01:34]} 25. Bxf6 {[%clk 0:00:43]}  Rde8 {[%clk 0:01:30]} 26. Bg5 {[%clk 0:00:36]}  Nxe3 {[%clk 0:01:21]} 27. Bxe3 {[%clk 0:00:34]}  Rxe3 {[%clk 0:01:21]} 28. Rxe3 {[%clk 0:00:34]}  Rxe3 {[%clk 0:01:22]} 29. Kg4 {[%clk 0:00:35]}  Kd7 {[%clk 0:01:02]} 30. Rd1 {[%clk 0:00:29]}  Kd6 {[%clk 0:01:02]} 31. Rd4 {[%clk 0:00:27]}  Bc3 {[%clk 0:00:59]} 32. Rf4 {[%clk 0:00:27]}  Re2 {[%clk 0:00:54]} 33. Rf7 {[%clk 0:00:19]}  Rg2+ {[%clk 0:00:50]} 34. Kh3 {[%clk 0:00:18]}  Rxa2 {[%clk 0:00:50]} 35. Rxb7 {[%clk 0:00:17]}  d4 {[%clk 0:00:51]} 36. Ng5 {[%clk 0:00:16]}  Kc6 {[%clk 0:00:46]} 37. Rb8 {[%clk 0:00:15]}  Ra3 {[%clk 0:00:40]} 38. Ne4 {[%clk 0:00:10]}  Kd5 {[%clk 0:00:35]} 39. Nxc3+ {[%clk 0:00:10]}  dxc3 {[%clk 0:00:35]} 40. Kg4 {[%clk 0:00:10]}  Kd4 {[%clk 0:00:31]} 41. Rd8+ {[%clk 0:00:10]}  Ke3 {[%clk 0:00:31]} 42. Rb8 {[%clk 0:00:04]}  c2 {[%clk 0:00:28]} 43. Re8+ {[%clk 0:00:04]}  Kd2 {[%clk 0:00:29]} 44. Rd8+ {[%clk 0:00:03]}  Kc3 {[%clk 0:00:29]} 45. Rc8+ {[%clk 0:00:03]}  Kb2 {[%clk 0:00:29]} 46. Kg5 {[%clk 0:00:02]}  Rxb3 {[%clk 0:00:29]} 47. Kxg6 {[%clk 0:00:01]}  Rc3 {[%clk 0:00:29]} 48. Rb8+ {[%clk 0:00:01]}  Ka2 {[%clk 0:00:28]} 0-1


[Site "https://www.chess.com"]